bitfinex/quotes_BTCUSD_20220226
["timestamp","ask_amount","ask_price","bid_price","bid_amount"]
[1645887298326,0.07887,39184.0,39174.0,0.39007052]
[1645887298523,0.11387,39184.0,39174.0,0.39007052]
[1645887299123,0.1,39184.0,39183.0,0.00227318]
[1645887299624,0.115,39184.0,39183.0,0.00227318]
[1645887302271,0.1,39184.0,39183.0,0.00227318]
[1645887302874,0.120444,39184.0,39183.0,0.00227318]
[1645887303671,0.110222,39184.0,39183.0,0.00227318]
[1645887303924,0.1,39184.0,39183.0,0.00227318]
[1645887304920,0.115,39184.0,39183.0,0.00227318]
[1645887305620,0.1,39184.0,39183.0,0.00227318]
[1645887306821,0.120443,39184.0,39183.0,0.00227318]
[1645887307123,0.110222,39184.0,39183.0,0.00227318]
[1645887308166,0.060222,39184.0,39183.0,0.00227318]
[1645887308368,0.015,39185.0,39183.0,0.00227318]
[1645887308670,0.06417758,39187.0,39185.0,1.2]
[1645887308671,0.00031958,39187.0,39185.0,1.2]
[1645887308873,0.01,39199.0,39190.0,0.15]
[1645887309178,0.01,39199.0,39189.0,0.2]
[1645887309179,0.10117723,39207.0,39201.0,0.7788]
[1645887309373,0.10117723,39207.0,39206.0,1.157252]
[1645887309569,0.10110618,39207.0,39206.0,1.157252]
[1645887309769,0.00127723,39207.0,39206.0,1.157252]
[1645887309972,0.01387,39210.0,39207.0,0.02553]
[1645887310170,0.01387,39210.0,39209.0,0.7788]
[1645887310368,0.01387,39210.0,39205.0,0.085]
[1645887310369,0.01387,39210.0,39205.0,0.88933]
[1645887310769,0.01387,39210.0,39205.0,0.7788]
[1645887311168,0.01387,39210.0,39203.0,0.7788]
[1645887311447,0.00015242,39209.0,39203.0,0.80433]
[1645887311625,0.00015242,39209.0,39203.0,0.02553]
[1645887311830,0.00902242,39210.0,39203.0,0.02553]
[1645887312225,0.00902242,39210.0,39201.0,0.8638]
[1645887312625,0.00902242,39210.0,39203.0,0.26]
[1645887314432,0.00902242,39210.0,39207.0,0.00213055]
[1645887314628,0.04053,39209.0,39207.0,0.00213055]
[1645887314831,0.3,39208.0,39207.0,0.00213055]
[1645887315179,0.42553,39208.0,39207.0,0.00213055]
[1645887315375,0.43694523,39208.0,39207.0,0.00213055]
[1645887316378,0.48794523,39208.0,39207.0,0.00213055]
[1645887316983,0.45294523,39208.0,39207.0,0.00213055]
[1645887317182,0.23235994,39208.0,39207.0,0.81558255]
[1645887317386,0.00902242,39210.0,39208.0,0.80433]
[1645887317583,0.00902242,39210.0,39209.0,1.1638]
[1645887317979,2.242e-05,39210.0,39209.0,1.1638]
[1645887318179,0.001,39213.0,39211.0,0.7788]
[1645887318385,1.0066,39242.0,39215.0,1.22553]
[1645887318683,1.1942927,39245.0,39241.0,0.085]
[1645887318684,0.3135927,39245.0,39241.0,0.085]
[1645887318958,1.0066,39254.0,39241.0,0.085]
[1645887318960,1.0066,39262.0,39251.0,0.03455]
[1645887319251,0.04,39270.0,39258.0,0.69354221]
[1645887319448,0.77417,39259.0,39258.0,1.508252]
[1645887319652,0.04,39270.0,39258.0,0.051]
[1645887319848,0.25605705,39276.0,39258.0,0.051]
[1645887320152,0.25605705,39276.0,39250.0,0.02553]
[1645887320153,0.3,39276.0,39263.0,0.0489]
[1645887320350,0.1,39274.0,39251.0,0.21240508]
[1645887320648,0.3,39273.0,39261.0,0.17160357]
[1645887321046,0.3,39273.0,39264.0,0.0489]
[1645887321253,0.0999,39267.0,39264.0,0.0489]
[1645887321645,0.00638959,39266.0,39264.0,0.0489]
[1645887322045,0.00638959,39266.0,39264.0,0.0239]
[1645887322449,0.00638959,39266.0,39264.0,0.0228]
[1645887322450,0.05638959,39266.0,39264.0,0.0228]
[1645887323274,0.001,39266.0,39264.0,0.0228]
[1645887323577,0.001,39266.0,39265.0,0.378452]
[1645887323770,0.2499,39277.0,39270.0,0.02796957]
[1645887323771,0.00137167,39273.0,39270.0,0.02796957]
[1645887324173,0.00137167,39273.0,39271.0,0.20765824]
[1645887324373,0.00137167,39273.0,39272.0,0.378452]
[1645887324575,0.3,39286.0,39271.0,0.20765824]
[1645887324776,0.2499,39288.0,39273.0,0.05]
[1645887324974,0.3,39287.0,39273.0,0.05]
[1645887325471,0.3,39287.0,39281.0,0.05]
[1645887325676,0.1099,39289.0,39281.0,0.05]
[1645887325871,0.3,39288.0,39281.0,0.05]
[1645887326074,0.00033293,39282.0,39281.0,0.05]
[1645887326274,0.00033293,39282.0,39281.0,0.428452]
[1645887326544,0.00033293,39282.0,39281.0,0.728452]
[1645887327042,0.10123151,39288.0,39284.0,0.22821512]
[1645887327043,0.0999,39288.0,39284.0,0.22821512]
[1645887327242,0.01133148,39289.0,39282.0,0.3]
[1645887327548,0.01133148,39289.0,39281.0,0.05]
[1645887327549,0.00638959,39288.0,39281.0,0.05]
[1645887328447,0.00033291,39286.0,39281.0,0.05]
[1645887328850,0.1,39284.0,39281.0,0.05]
[1645887329043,0.00638959,39285.0,39281.0,0.05]
[1645887329044,0.05,39283.0,39281.0,0.05]
[1645887329243,0.1,39282.0,39281.0,0.05]
[1645887329445,0.15638959,39282.0,39270.0,0.02796957]
[1645887329644,0.1,39278.0,39273.0,0.05]
[1645887329944,0.02553,39277.0,39273.0,0.05]
[1645887330201,0.05638959,39277.0,39273.0,0.05]
[1645887330598,0.00638959,39277.0,39273.0,0.05]
[1645887330797,0.00671619,39277.0,39273.0,0.05]
[1645887330997,0.03224619,39277.0,39273.0,0.05]
[1645887331197,0.00638959,39276.0,39273.0,0.05]
[1645887331398,0.03191959,39276.0,39273.0,0.05]
[1645887331600,0.00638959,39276.0,39273.0,0.05]
[1645887331999,0.0067162,39276.0,39273.0,0.05]
[1645887332400,0.00638959,39275.0,39273.0,0.05]
[1645887334338,0.17653,39274.0,39273.0,0.05]
[1645887334533,0.07653,39274.0,39273.0,0.05]
[1645887334734,0.08291959,39274.0,39273.0,0.05]
[1645887334938,0.02553,39272.0,39253.0,0.3]
[1645887335136,0.02553,39264.0,39250.0,0.065]
[1645887335340,0.02553,39262.0,39250.0,0.015]
[1645887335535,0.84289853,39263.0,39250.0,0.015]
[1645887335735,0.101,39262.0,39250.0,0.015]
[1645887335934,0.11795822,39262.0,39250.0,0.015]
[1645887336134,0.06795822,39262.0,39250.0,0.015]
[1645887336335,0.11795822,39262.0,39252.0,0.19575802]
[1645887336536,0.11156863,39262.0,39252.0,0.19575802]
[1645887336736,0.02553,39261.0,39252.0,0.19575802]
[1645887336935,0.07653,39260.0,39252.0,0.19575802]
[1645887337136,0.07653,39259.0,39252.0,0.19575802]
[1645887337335,0.046,39258.0,39252.0,0.19575802]
[1645887339780,0.07153,39258.0,39252.0,0.19575802]
[1645887339981,0.235282,39258.0,39251.0,0.00199565]
[1645887340184,0.02553,39253.0,39251.0,0.00199565]
[1645887340381,0.07653,39252.0,39251.0,0.00199565]
[1645887340881,0.07653,39252.0,39242.0,0.05]
[1645887340882,0.17653,39252.0,39242.0,0.05]
[1645887341182,0.17653,39252.0,39242.0,0.20977592]
[1645887341183,0.11142414,39249.0,39242.0,0.20977592]
[1645887341450,0.051,39248.0,39242.0,0.20977592]
[1645887341846,0.101,39248.0,39242.0,0.20977592]
[1645887342448,0.051,39248.0,39242.0,0.20977592]
[1645887342847,0.051,39248.0,39242.0,0.20477592]
[1645887343446,0.0505502,39248.0,39242.0,0.20477592]
[1645887344748,0.0505502,39248.0,39242.0,0.17977592]
[1645887348784,0.0505502,39248.0,39242.0,0.43977592]
[1645887349635,0.0515502,39248.0,39243.0,0.00186126]
[1645887349836,0.0770802,39248.0,39243.0,0.00186126]
[1645887350038,0.1270802,39248.0,39243.0,0.00186126]
[1645887350336,0.1015502,39248.0,39243.0,0.00186126]
[1645887350539,0.13942993,39248.0,39243.0,0.00186126]
[1645887350940,0.11289993,39248.0,39243.0,0.00186126]
[1645887351336,0.06289993,39248.0,39243.0,0.00186126]
[1645887351537,0.1005502,39248.0,39243.0,0.00186126]
[1645887351936,0.02553,39247.0,39243.0,0.00186126]
[1645887352140,0.051,39246.0,39243.0,0.00186126]
[1645887352338,0.27721281,39246.0,39243.0,0.00186126]
[1645887352537,0.051,39246.0,39243.0,0.00186126]
[1645887352985,0.1998,39244.0,39243.0,0.00186126]
[1645887353186,0.07653,39244.0,39243.0,0.00186126]
[1645887353491,0.052,39244.0,39243.0,0.00186126]
[1645887354786,0.051,39244.0,39243.0,0.00186126]
[1645887355987,0.07653,39244.0,39243.0,0.00186126]
[1645887356630,0.051,39244.0,39243.0,0.00186126]
[1645887360486,0.015,39248.0,39243.0,0.00186126]
[1645887360487,0.066,39248.0,39243.0,0.00186126]
[1645887361087,0.066,39248.0,39245.0,0.22302357]
[1645887361288,0.066,39248.0,39243.0,0.00186126]
[1645887361494,0.1442,39248.0,39243.0,0.00186126]
[1645887361688,0.02553,39247.0,39243.0,0.00186126]
[1645887361887,0.07653,39246.0,39243.0,0.00186126]
[1645887362086,0.051,39245.0,39243.0,0.00186126]
[1645887362289,0.051,39245.0,39244.0,0.22347269]
[1645887362690,0.1998,39247.0,39244.0,0.52347269]
[1645887362889,0.1998,39247.0,39245.0,0.378452]
[1645887363090,0.1998,39247.0,39244.0,0.52347269]
[1645887363091,0.1998,39247.0,39244.0,0.22347269]
[1645887363290,0.1998,39247.0,39245.0,0.378452]
[1645887363490,0.015,39248.0,39247.0,1.2]
[1645887363690,0.00059768,39262.0,39247.0,1.2]
[1645887363691,0.00059768,39262.0,39248.0,2.00433]
[1645887363953,0.00059768,39262.0,39249.0,0.80433]
[1645887364347,0.3,39269.0,39249.0,0.80433]
[1645887364547,0.00137638,39263.0,39249.0,0.80433]
[1645887364748,0.00137638,39263.0,39262.0,0.23675937]
[1645887364948,0.00137638,39263.0,39250.0,0.05]
[1645887365150,0.00137638,39263.0,39249.0,0.378452]
[1645887365350,0.00137638,39263.0,39250.0,0.378452]
[1645887365547,2.56460689,39264.0,39250.0,0.003]
[1645887365748,2.56598326,39264.0,39250.0,0.003]
[1645887365949,2.56598326,39264.0,39255.0,0.1971663]
[1645887366153,2.56598326,39264.0,39250.0,0.003]
[1645887366154,0.3,39263.0,39250.0,0.003]
[1645887366352,0.35,39263.0,39250.0,0.003]
[1645887366756,0.35,39263.0,39244.0,0.36215173]
[1645887366951,0.36031449,39263.0,39244.0,0.36215173]
[1645887367152,0.35,39263.0,39254.0,0.22142807]
[1645887367788,0.42512549,39263.0,39244.0,0.38768173]
[1645887368188,0.0637422,39261.0,39244.0,0.36215173]
[1645887368388,0.3,39260.0,39244.0,0.36215173]
[1645887368788,0.3,39260.0,39250.0,0.18171876]
[1645887368989,0.07326995,39261.0,39250.0,0.18171876]
[1645887369192,0.0637422,39261.0,39256.0,0.19815262]
[1645887369394,0.3,39262.0,39256.0,0.19815262]
[1645887369992,0.02553,39261.0,39244.0,0.3603]
[1645887370195,0.1,39256.0,39244.0,0.3603]
[1645887370395,0.02553,39254.0,39244.0,0.3603]
[1645887370594,0.06375597,39251.0,39244.0,0.3603]
[1645887370791,0.351,39250.0,39244.0,0.3603]
[1645887370992,0.051,39250.0,39247.0,0.22435352]
[1645887371637,0.052,39250.0,39247.0,0.22435352]
[1645887372236,0.052,39250.0,39247.0,0.22393391]
[1645887372937,0.052,39250.0,39247.0,0.26]
[1645887373135,0.051,39250.0,39247.0,0.26]
[1645887373338,0.3,39249.0,39247.0,0.26]
[1645887373539,0.19021885,39248.0,39247.0,0.26]
[1645887373738,0.51574885,39248.0,39247.0,0.26]
[1645887374546,0.57951285,39248.0,39247.0,0.248]
[1645887375392,1.22553,39247.0,39246.0,5.348e-05]
[1645887375588,1.27653,39247.0,39246.0,5.348e-05]
[1645887375788,1.33794772,39247.0,39246.0,5.348e-05]
[1645887375989,2.03794772,39247.0,39246.0,5.348e-05]
[1645887376589,2.25274772,39247.0,39246.0,5.348e-05]
[1645887376993,2.83174772,39247.0,39246.0,5.348e-05]
[1645887377196,2.83174772,39247.0,39236.0,0.04]
[1645887377197,0.02553,39243.0,39236.0,0.04]
[1645887377392,0.06378579,39240.0,39236.0,0.04]
[1645887377592,0.07653,39239.0,39236.0,0.04]
[1645887377793,0.12653,39239.0,39236.0,0.04]
[1645887377993,0.13648557,39239.0,39236.0,0.04]
[1645887378595,0.20027357,39239.0,39236.0,0.04]
[1645887378793,0.08931613,39238.0,39236.0,0.04]
[1645887379034,0.07653,39237.0,39236.0,0.04]
[1645887379238,0.12653,39237.0,39236.0,0.04]
[1645887379534,0.1364177,39237.0,39236.0,0.04]
[1645887380937,0.1364177,39237.0,39236.0,0.028]
[1645887381336,0.1354177,39237.0,39236.0,0.028]
[1645887381738,0.1364177,39237.0,39236.0,0.028]
[1645887381937,1.2,39236.0,39232.0,0.05]
[1645887382139,0.15312771,39234.0,39232.0,0.05]
[1645887382342,0.07653,39233.0,39232.0,0.05]
[1645887383188,0.1363896,39233.0,39232.0,0.05]
[1645887385391,0.1108596,39233.0,39232.0,0.05]
[1645887385589,0.1108596,39233.0,39232.0,0.31]
[1645887385790,0.101,39233.0,39232.0,0.31]
[1645887387449,0.051,39233.0,39232.0,0.31]
[1645887388248,0.07653,39233.0,39232.0,0.31]
[1645887388848,0.136741,39233.0,39232.0,0.31]
[1645887389049,0.14826039,39233.0,39232.0,0.31]
[1645887389248,0.14826039,39233.0,39232.0,0.298]
[1645887389448,0.14826039,39233.0,39232.0,0.26]
[1645887389648,0.09726039,39233.0,39232.0,0.26]
[1645887390285,0.08704939,39233.0,39232.0,0.26]
[1645887390686,0.13804939,39233.0,39232.0,0.26]
[1645887391685,0.13904939,39233.0,39232.0,0.26]
[1645887392886,0.12273039,39233.0,39232.0,0.26]
[1645887394234,0.101,39233.0,39232.0,0.26]
[1645887400283,0.102,39233.0,39232.0,0.26]
[1645887400684,0.11221,39233.0,39232.0,0.26]
[1645887400984,0.101,39233.0,39232.0,0.26]
[1645887403845,0.101,39233.0,39232.0,0.25989316]
[1645887404044,0.102,39233.0,39232.0,0.25989316]
[1645887404645,0.112209,39233.0,39232.0,0.25989316]
[1645887405045,0.102,39233.0,39232.0,0.25989316]
[1645887405287,0.101,39233.0,39232.0,0.25989316]
[1645887407989,0.102,39233.0,39232.0,0.25989316]
[1645887409149,0.051,39233.0,39232.0,0.25989316]
[1645887409949,0.052,39233.0,39232.0,0.25989316]
[1645887411148,0.051,39233.0,39232.0,0.25989316]
[1645887412147,0.001,39233.0,39232.0,0.25989316]
[1645887412786,0.052,39233.0,39232.0,0.25989316]
[1645887413186,0.051,39233.0,39232.0,0.25989316]
[1645887413585,0.050729,39233.0,39232.0,0.25989316]
[1645887415990,0.001,39233.0,39232.0,0.25989316]
[1645887416188,0.089783,39235.0,39232.0,0.25989316]
[1645887416635,0.01021,39233.0,39232.0,0.25989316]
[1645887418032,0.001,39233.0,39232.0,0.25989316]
[1645887418937,0.001,39233.0,39232.0,0.44982075]
[1645887419335,0.01199822,39237.0,39232.0,0.74982075]
[1645887419539,0.19674897,39238.0,39232.0,0.74982075]
[1645887419540,0.13296697,39238.0,39232.0,0.74982075]
[1645887419739,0.015,39244.0,39233.0,0.1]
[1645887419937,0.1998,39239.0,39235.0,0.12553]
[1645887420192,0.1998,39239.0,39236.0,0.33571]
[1645887420392,0.004,39242.0,39238.0,0.19394132]
[1645887420591,0.004,39242.0,39236.0,0.01018]
[1645887420993,0.067772,39242.0,39233.0,0.1167]
[1645887421198,2.14701728,39238.0,39232.0,0.25989316]
[1645887421595,2.14701728,39238.0,39232.0,0.4352335]
[1645887421994,2.14701728,39238.0,39232.0,0.4362335]
[1645887422194,2.14701728,39238.0,39232.0,0.26089316]
[1645887423194,2.14701728,39238.0,39232.0,0.25989316]
[1645887425038,2.32457388,39238.0,39232.0,0.25989316]
[1645887425236,0.051,39237.0,39232.0,0.25989316]
[1645887426639,0.114783,39237.0,39232.0,0.25989316]
[1645887426838,0.164783,39237.0,39232.0,0.25989316]
[1645887427038,0.17425086,39237.0,39232.0,0.25989316]
[1645887427437,0.05,39236.0,39232.0,0.25989316]
[1645887427691,0.051,39235.0,39232.0,0.25989316]
[1645887428386,0.061209,39235.0,39232.0,0.25989316]
[1645887428787,0.061209,39235.0,39234.0,0.00153155]
[1645887430089,0.051,39235.0,39234.0,0.00153155]
[1645887433739,0.101,39235.0,39234.0,0.00153155]
[1645887433940,0.1131631,39235.0,39234.0,0.00153155]
[1645887434144,0.1141631,39235.0,39234.0,0.00153155]
[1645887434540,0.102,39235.0,39234.0,0.00153155]
[1645887435284,0.101,39235.0,39234.0,0.00153155]
[1645887436286,0.051,39235.0,39234.0,0.00153155]
[1645887436485,0.061209,39235.0,39234.0,0.00153155]
[1645887436690,0.051,39235.0,39234.0,0.00153155]
[1645887437692,2.14701728,39238.0,39234.0,0.00153155]
[1645887440147,2.14901728,39238.0,39234.0,0.00153155]
[1645887440346,2.15922528,39238.0,39234.0,0.00153155]
[1645887440746,2.14901728,39238.0,39234.0,0.00153155]
[1645887441347,2.14701728,39238.0,39234.0,0.00153155]
[1645887441647,2.14701728,39238.0,39234.0,0.00142707]
[1645887441849,2.21079628,39238.0,39234.0,0.00142707]
[1645887442249,2.27457489,39238.0,39234.0,0.00142707]
[1645887442449,2.43707957,39238.0,39234.0,0.00142707]
[1645887443693,2.50086557,39238.0,39234.0,0.00142707]
[1645887444192,2.51107457,39238.0,39234.0,0.00142707]
[1645887444594,2.50086557,39238.0,39234.0,0.00142707]
[1645887447047,2.50079812,39238.0,39234.0,0.00142707]
[1645887447744,2.50031281,39238.0,39234.0,0.00142707]
[1645887448143,2.51152181,39238.0,39234.0,0.00142707]
[1645887448544,2.50131281,39238.0,39234.0,0.00142707]
[1645887449345,2.50031281,39238.0,39234.0,0.00142707]
[1645887450998,0.13314637,39237.0,39234.0,0.00142707]
[1645887451195,0.051,39236.0,39234.0,0.00142707]
[1645887451595,0.101,39236.0,39234.0,0.00142707]
[1645887451995,0.111209,39236.0,39234.0,0.00142707]
[1645887452894,0.101,39236.0,39234.0,0.00142707]
[1645887453296,0.051,39236.0,39234.0,0.00142707]
[1645887455345,0.18314637,39237.0,39234.0,0.00142707]
[1645887455545,0.13314637,39237.0,39234.0,0.00142707]
[1645887456045,0.010208,39236.0,39234.0,0.00142707]
[1645887456346,0.13314637,39237.0,39234.0,0.00142707]
[1645887457895,2.14701728,39238.0,39234.0,0.00142707]
[1645887458094,2.14701728,39238.0,39235.0,0.378452]
[1645887458293,2.14701728,39238.0,39236.0,0.3]
[1645887458498,2.14701728,39238.0,39235.0,0.01018]
[1645887458892,0.001,39242.0,39236.0,0.21845479]
[1645887459295,0.03800226,39246.0,39236.0,0.21845479]
[1645887459695,0.08800226,39246.0,39236.0,0.21845479]
[1645887459895,0.03800226,39246.0,39236.0,0.31845479]
[1645887460101,0.03800226,39246.0,39236.0,0.32863479]
[1645887460498,0.03800226,39246.0,39243.0,0.21092961]
[1645887460797,0.03800226,39246.0,39237.0,0.3]
[1645887460997,0.03800226,39246.0,39235.0,0.31161083]
[1645887461440,0.03800226,39246.0,39236.0,0.02553]
[1645887461640,0.03800226,39246.0,39239.0,0.22394384]
[1645887462142,0.03900226,39246.0,39239.0,0.22394384]
[1645887463443,0.03800226,39246.0,39239.0,0.22394384]
[1645887464046,0.03800226,39246.0,39239.0,0.2253719]
[1645887464546,0.2997,39247.0,39245.0,0.23690308]
[1645887464944,0.1998,39247.0,39245.0,0.23690308]
[1645887465191,0.1998,39247.0,39240.0,0.3]
[1645887465994,0.2008,39247.0,39240.0,0.3]
[1645887466295,0.2008,39247.0,39242.0,0.17684188]
[1645887466892,0.2008,39247.0,39239.0,0.00142806]
[1645887467492,0.1998,39247.0,39239.0,0.00142806]
[1645887467897,0.2008,39247.0,39239.0,0.00142806]
[1645887468295,0.3008,39247.0,39239.0,0.00142806]
[1645887468695,0.3008,39247.0,39242.0,0.00142622]
[1645887469142,0.2998,39247.0,39242.0,0.00142622]
[1645887469543,0.2498,39247.0,39242.0,0.00142622]
[1645887469746,0.1998,39247.0,39242.0,0.00142622]
[1645887470043,0.1998,39247.0,39244.0,0.21197122]
[1645887470044,0.2018,39247.0,39244.0,0.21197122]
[1645887471246,0.1998,39247.0,39244.0,0.21197122]
[1645887472999,0.1998,39247.0,39244.0,0.47197122]
[1645887473390,0.1998,39247.0,39244.0,0.26]
[1645887473788,0.1998,39247.0,39246.0,0.00142346]
[1645887473991,0.2008,39247.0,39246.0,0.00142346]
[1645887475292,0.2508,39247.0,39246.0,0.00142346]
[1645887479352,0.5508,39247.0,39246.0,0.00142346]
[1645887479752,0.6508,39247.0,39246.0,0.00142346]
[1645887479952,0.6518,39247.0,39246.0,0.00142346]
[1645887480196,0.66429506,39247.0,39246.0,0.00142346]
[1645887480592,0.91419506,39247.0,39246.0,0.00142346]
[1645887481194,0.91319506,39247.0,39246.0,0.00142346]
[1645887481793,0.91319506,39247.0,39246.0,0.000622]
[1645887481992,0.91419506,39247.0,39246.0,0.000622]
[1645887482191,0.91419506,39247.0,39246.0,0.00048587]
[1645887483194,0.91319506,39247.0,39246.0,0.00048587]
[1645887483402,0.95913906,39247.0,39246.0,0.00048587]
[1645887483598,0.95913906,39247.0,39244.0,0.26]
[1645887483798,1.72392206,39247.0,39246.0,0.00142346]
[1645887484049,1.72492206,39247.0,39246.0,0.00142346]
[1645887484248,2.18457976,39247.0,39246.0,3.46e-06]
[1645887484450,2.54322025,39247.0,39246.0,3.46e-06]
[1645887485148,2.53301325,39247.0,39244.0,0.25961546]
[1645887485447,0.76343,39245.0,39244.0,0.24761546]
[1645887485648,1.22479267,39245.0,39244.0,0.24761546]
[1645887487251,1.42459267,39245.0,39244.0,0.24761546]
[1645887487692,1.49222402,39245.0,39244.0,0.24761546]
[1645887488294,1.53126005,39245.0,39244.0,0.24761546]
[1645887488896,1.33146005,39245.0,39244.0,0.24761546]
[1645887489294,1.23146005,39245.0,39244.0,0.24761546]
[1645887489897,1.43126005,39245.0,39244.0,0.24761546]
[1645887490098,1.23146005,39245.0,39244.0,0.24761546]
[1645887490299,1.43126005,39245.0,39244.0,0.23561546]
[1645887491542,0.31683005,39245.0,39244.0,0.53561546]
[1645887491753,0.31683005,39245.0,39244.0,0.91406746]
[1645887491754,0.1998,39245.0,39244.0,0.91406746]
[1645887491942,0.015,39254.0,39244.0,0.93959746]
[1645887491943,0.06764401,39249.0,39244.0,0.93959746]
[1645887492148,0.06764401,39249.0,39248.0,0.3]
[1645887492346,0.002,39250.0,39248.0,0.678452]
[1645887492544,0.002,39250.0,39249.0,0.92579054]
[1645887492745,0.002,39250.0,39249.0,1.02579054]
[1645887492946,0.015,39254.0,39250.0,1.22553]
[1645887493245,0.015,39254.0,39253.0,0.478452]
[1645887493848,0.015,39254.0,39253.0,0.4]
[1645887494045,0.015,39254.0,39253.0,0.401]
[1645887494343,0.015,39254.0,39253.0,0.779452]
[1645887495394,0.015,39254.0,39253.0,0.778452]
[1645887495594,0.015,39254.0,39253.0,0.4]
[1645887496095,0.015,39254.0,39253.0,0.402]
[1645887496694,0.01147995,39269.0,39253.0,0.402]
[1645887496695,0.0111447,39269.0,39253.0,0.402]
[1645887496895,0.0111447,39269.0,39257.0,0.1]
[1645887497094,2.63592755,39262.0,39258.0,0.3]
[1645887497294,2.63592755,39262.0,39257.0,0.1]
[1645887497997,2.6345863,39262.0,39260.0,0.22738455]
[1645887500048,2.6345863,39262.0,39257.0,0.26]
[1645887502049,2.6345863,39262.0,39257.0,0.261]
[1645887502250,2.6295863,39262.0,39257.0,0.261]
[1645887503327,2.6295863,39262.0,39257.0,0.26]
[1645887503728,2.6295863,39262.0,39257.0,0.28553]
[1645887503929,0.010201,39264.0,39262.0,0.18295561]
[1645887504132,0.04,39270.0,39262.0,0.18295561]
[1645887504428,0.00051384,39267.0,39262.0,0.18295561]
[1645887504629,0.00051384,39267.0,39257.0,0.562]
[1645887504830,0.00051384,39267.0,39259.0,0.00121374]
[1645887505229,0.103727,39270.0,39259.0,0.00121374]
[1645887505429,0.00012847,39269.0,39259.0,0.00121374]
[1645887505628,0.00012847,39269.0,39259.0,0.17336997]
[1645887506229,0.00012847,39269.0,39259.0,0.17536997]
[1645887506444,0.21533296,39270.0,39259.0,0.17536997]
[1645887506649,0.00033553,39269.0,39260.0,0.3]
[1645887507047,1.83379059,39263.0,39260.0,0.3]
[1645887507444,1.83379059,39263.0,39259.0,0.17336997]
[1645887507644,1.83379059,39263.0,39260.0,0.3]
[1645887508048,1.83379059,39263.0,39259.0,0.17436997]
[1645887508244,1.83379059,39263.0,39260.0,0.3]
[1645887508648,1.83379059,39263.0,39259.0,0.19989997]
[1645887509447,1.83379059,39263.0,39259.0,0.19889997]
[1645887509649,1.83379059,39263.0,39260.0,0.02151157]
[1645887510504,1.83379059,39263.0,39260.0,0.32151157]
[1645887510700,0.00161062,39269.0,39262.0,0.1]
[1645887510701,0.01181062,39269.0,39262.0,0.1]
[1645887510900,0.01181062,39269.0,39263.0,0.678452]
[1645887511102,0.04,39270.0,39263.0,0.678452]
[1645887511499,0.00032214,39269.0,39263.0,0.678452]
[1645887511702,0.00032214,39269.0,39265.0,0.16909889]
[1645887512103,2.01802612,39268.0,39265.0,0.16909889]
[1645887512303,2.01802612,39268.0,39266.0,0.378452]
[1645887512502,2.01802612,39268.0,39267.0,0.378452]
[1645887512703,2.01802612,39268.0,39263.0,1.0808]
[1645887512704,2.01802612,39268.0,39263.0,0.302]
[1645887512903,2.01802612,39268.0,39263.0,0.002]
[1645887513302,2.01802612,39268.0,39262.0,0.02553]
[1645887513503,2.01802612,39268.0,39260.0,0.02151157]
[1645887514544,2.01802612,39268.0,39263.0,0.00121247]
[1645887516143,2.01802612,39268.0,39263.0,0.00221247]
[1645887517545,2.01802612,39268.0,39263.0,0.00121247]
[1645887518299,2.01802612,39268.0,39263.0,0.00221247]
[1645887519498,2.01802612,39268.0,39263.0,0.00121247]
[1645887519902,0.063738,39266.0,39263.0,2.47e-06]
[1645887520102,0.7379,39264.0,39263.0,2.47e-06]
[1645887520307,0.8889,39264.0,39263.0,2.47e-06]
[1645887520500,0.90033554,39264.0,39263.0,2.47e-06]
[1645887521100,0.92586554,39264.0,39263.0,2.47e-06]
[1645887521947,0.93606954,39264.0,39263.0,0.26000247]
[1645887522144,0.92586554,39264.0,39263.0,0.26000247]
[1645887523550,1.62586554,39264.0,39263.0,0.26000247]
[1645887523752,2.12566554,39264.0,39263.0,0.25990812]
[1645887524148,1.22553,39263.0,39249.0,0.05]
[1645887524347,0.02553,39257.0,39244.0,0.12617]
[1645887524548,0.089287,39255.0,39244.0,0.12617]
[1645887524750,0.01223602,39255.0,39247.0,0.1]
[1645887524962,0.3788,39265.0,39250.0,0.1]
[1645887525202,2.65592612,39268.0,39251.0,0.31017]
[1645887525203,2.01802612,39268.0,39251.0,0.31017]
[1645887525400,0.051,39266.0,39251.0,0.31017]
[1645887525801,0.051,39266.0,39255.0,0.21854967]
[1645887526400,0.051,39266.0,39251.0,0.31217]
[1645887527001,0.051,39266.0,39251.0,0.01217]
[1645887527205,0.05229193,39266.0,39251.0,0.31217]
[1645887527401,0.05229193,39266.0,39251.0,0.31017]
[1645887527606,0.05229193,39266.0,39252.0,0.22145473]
[1645887527801,0.05229193,39266.0,39252.0,0.24698473]
[1645887528002,0.051,39266.0,39253.0,0.3]
[1645887528205,0.051,39266.0,39252.0,0.22145473]
[1645887529049,0.051,39266.0,39253.0,0.3]
[1645887529349,0.051,39266.0,39252.0,0.22145473]
[1645887529547,0.051,39266.0,39256.0,0.00086022]
[1645887530049,0.061201,39266.0,39256.0,0.00086022]
[1645887530350,0.051,39266.0,39256.0,0.00086022]
[1645887531951,0.19174349,39266.0,39256.0,0.00086022]
[1645887532151,0.063735,39264.0,39256.0,0.00086022]
[1645887532452,0.06024326,39265.0,39256.0,0.00086022]
[1645887533295,0.06024326,39265.0,39256.0,0.26086022]
[1645887533894,0.07044526,39265.0,39256.0,0.26086022]
[1645887534094,0.02044526,39265.0,39256.0,0.26086022]
[1645887534296,0.01024326,39265.0,39256.0,0.26086022]
[1645887534495,0.151,39266.0,39256.0,0.00086022]
[1645887535500,0.151,39266.0,39258.0,0.23015779]
[1645887535697,2.06802612,39268.0,39258.0,0.23015779]
[1645887536749,0.00032295,39269.0,39265.0,0.22988983]
[1645887536953,0.00032295,39269.0,39266.0,0.3]
[1645887537348,0.00032295,39269.0,39265.0,0.22988983]
[1645887537549,0.04,39270.0,39265.0,0.22988983]